fUSD/lending_fUSD_20240412
["ID","MTS","AMOUNT","RATE_DAILY","PERIOD"]
[322240101,1712910643214,-500.0,0.00027397,2]
[322240102,1712910643223,-500.0,0.00027397,2]
[322240103,1712910643234,-500.0,0.00027397,2]
[322240104,1712910643243,-1051.09,0.00027397,2]
[322240105,1712910643252,-500.0,0.00027397,2]
[322240106,1712910643262,-581.78,0.00027397,2]
[322240107,1712910643271,-500.0,0.00027397,2]
[322240108,1712910643280,-955.26,0.00027397,2]
[322240109,1712910643289,-500.0,0.00027397,2]
[322240110,1712910643298,-500.0,0.00027397,2]
[322240111,1712910643307,-500.0,0.00027397,2]
[322240112,1712910643316,-1086.38,0.00027397,2]
[322240113,1712910643325,-500.0,0.00027397,2]
[322240114,1712910643334,-500.0,0.00027397,2]
[322240115,1712910643345,-500.0,0.00027397,2]
[322240116,1712910643354,-500.0,0.00027397,2]
[322240117,1712910643363,-500.0,0.00027397,2]
[322240118,1712910643373,-1440.94,0.00027397,2]
[322240119,1712910643381,-500.0,0.00027397,2]
[322240120,1712910643391,-500.0,0.00027397,2]
[322240122,1712910643400,-502.77341379,0.00027397,2]
[322240123,1712910643409,-508.08473832,0.00027397,2]
[322240125,1712910643418,-15881.78,0.00027397,2]
[322240127,1712910643427,-500.0,0.00027397,2]
[322240128,1712910643436,-500.0,0.00027397,2]
[322240129,1712910643446,-500.0,0.00027397,2]
[322240130,1712910643455,-500.0,0.00027397,2]
[322240131,1712910643464,-2268.83,0.00027397,2]
[322240132,1712910643473,-520.86503393,0.00027397,2]
[322240133,1712910643483,-500.0,0.00027397,2]
[322240134,1712910643493,-500.0,0.00027397,2]
[322240135,1712910643502,-1118.92,0.00027397,2]
[322240136,1712910643511,-500.0,0.00027397,2]
[322240137,1712910643520,-500.0,0.00027397,2]
[322240138,1712910643529,-500.0,0.00027397,2]
[322240139,1712910643538,-500.0,0.00027397,2]
[322240140,1712910643547,-635.62,0.00027397,2]
[322240141,1712910643557,-500.0,0.00027397,2]
[322240142,1712910643566,-500.0,0.00027397,2]
[322240143,1712910643576,-500.0,0.00027397,2]
[322240144,1712910643585,-500.0,0.00027397,2]
[322240145,1712910643596,-500.0,0.00027397,2]
[322240146,1712910643605,-500.0,0.00027397,2]
[322240147,1712910643614,-1073.25,0.00027397,2]
[322240148,1712910643623,-500.0,0.00027397,2]
[322240149,1712910643632,-670.16,0.00027397,2]
[322240150,1712910643641,-500.0,0.00027397,2]
[322240151,1712910643650,-628.69,0.00027397,2]
[322240152,1712910643659,-518.03904306,0.00027397,2]
[322240153,1712910643669,-888.45,0.00027397,2]
[322240154,1712910643678,-1644.72,0.00027397,2]
[322240155,1712910643687,-500.0,0.00027397,2]
[322240156,1712910643696,-500.0,0.00027397,2]
[322240157,1712910643705,-500.0,0.00027397,2]
[322240158,1712910643714,-688.0,0.00027397,2]
[322240159,1712910643723,-2054.82,0.00027397,2]
[322240160,1712910643734,-500.0,0.00027397,2]
[322240161,1712910643743,-151.3229894,0.00027397,2]
[322240162,1712910643752,-500.0,0.00027397,2]
[322240163,1712910643761,-500.0,0.00027397,2]
[322240164,1712910643770,-500.0,0.00027397,2]
[322240165,1712910643779,-794.28,0.00027397,2]
[322240166,1712910643789,-500.0,0.00027397,2]
[322240167,1712910643798,-500.0,0.00027397,2]
[322240168,1712910643807,-510.06228773,0.00027397,2]
[322240169,1712910643816,-500.0,0.00027397,2]
[322240170,1712910643825,-500.0,0.00027397,2]
[322240171,1712910643834,-500.0,0.00027397,2]
[322240172,1712910643846,-500.0,0.00027397,2]
[322240173,1712910643858,-469.71321926,0.00027397,2]
[322240174,1712910643868,-504.05,0.00027397,2]
[322240175,1712910643876,-2423.68,0.00027397,2]
[322240176,1712910643886,-500.0,0.00027397,2]
[322240177,1712910643897,-5075.03,0.00027397,2]
[322240178,1712910643906,-500.0,0.00027397,2]
[322240179,1712910643915,-500.0,0.00027397,2]
[322240180,1712910643925,-500.0,0.00027397,2]
[322240181,1712910643936,-500.0,0.00027397,2]
[322240182,1712910643946,-625.56609854,0.00027397,2]
[322240183,1712910643955,-500.0,0.00027397,2]
[322240184,1712910643965,-500.0,0.00027397,2]
[322240185,1712910643974,-500.0,0.00027397,2]
[322240186,1712910643984,-500.0,0.00027397,2]
[322240187,1712910643993,-500.0,0.00027397,2]
[322240188,1712910644002,-500.0,0.00027397,2]
[322240189,1712910644013,-769.18,0.00027397,2]
[322240190,1712910644022,-513.6418495,0.00027397,2]
[322240191,1712910644033,-500.0,0.00027397,2]
[322240192,1712910644043,-500.0,0.00027397,2]
[322240193,1712910644053,-1718.02,0.00027397,2]
[322240194,1712910644062,-500.0,0.00027397,2]
[322240195,1712910644073,-500.0,0.00027397,2]
[322240196,1712910644082,-511.10079413,0.00027397,2]
[322240197,1712910644092,-537.7218978,0.00027397,2]
[322240198,1712910644101,-500.0,0.00027397,2]
[322240199,1712910644112,-707.32,0.00027397,2]
[322240200,1712910644122,-500.0,0.00027397,2]
[322240201,1712910644131,-500.0,0.00027397,2]
[322240202,1712910644140,-510.86018858,0.00027397,2]
[322240203,1712910644150,-500.0,0.00027397,2]
[322240204,1712910644161,-500.0,0.00027397,2]
[322240205,1712910644171,-500.0,0.00027397,2]
[322240206,1712910644182,-500.0,0.00027397,2]
[322240207,1712910644196,-500.0,0.00027397,2]
[322240208,1712910644206,-500.0,0.00027397,2]
[322240209,1712910644215,-511.65,0.00027397,2]
[322240210,1712910644227,-500.0,0.00027397,2]
[322240211,1712910644237,-536.54474859,0.00027397,2]
[322240212,1712910644246,-500.0,0.00027397,2]
[322240213,1712910644255,-526.86381402,0.00027397,2]
[322240214,1712910644264,-1023.69,0.00027397,2]
[322240215,1712910644273,-500.0,0.00027397,2]
[322240216,1712910644283,-500.0,0.00027397,2]
[322240217,1712910644294,-514.31222022,0.00027397,2]
[322240218,1712910644303,-500.0,0.00027397,2]
[322240219,1712910644312,-500.0,0.00027397,2]
[322240220,1712910644321,-511.40607744,0.00027397,2]
[322240221,1712910644330,-511.2609775,0.00027397,2]
[322240222,1712910644508,-500.0,0.00027397,2]
[322240223,1712910644519,-1513.61,0.00027397,2]
[322240224,1712910644530,-500.0,0.00027397,2]
[322240225,1712910644540,-500.0,0.00027397,2]
[322240226,1712910644551,-500.0,0.00027397,2]
[322240227,1712910644564,-518.37425659,0.00027397,2]
[322240228,1712910644576,-661.27,0.00027397,2]
[322240229,1712910644586,-500.0,0.00027397,2]
[322240230,1712910644596,-500.0,0.00027397,2]
[322240231,1712910644608,-500.0,0.00027397,2]
[322240232,1712910644618,-500.0,0.00027397,2]
[322240233,1712910644627,-500.0,0.00027397,2]
[322240234,1712910644637,-500.0,0.00027397,2]
[322240235,1712910644647,-500.0,0.00027397,2]
[322240236,1712910644659,-500.0,0.00027397,2]
[322240237,1712910644669,-500.0,0.00027397,2]
[322240238,1712910644681,-1518.69,0.00027397,2]
[322240239,1712910644691,-500.0,0.00027397,2]
[322240240,1712910644702,-500.0,0.00027397,2]
[322240241,1712910644713,-500.0,0.00027397,2]
[322240242,1712910644724,-500.0,0.00027397,2]
[322240243,1712910644734,-506.12671531,0.00027397,2]
[322240244,1712910644745,-500.0,0.00027397,2]
[322240245,1712910644756,-1734.28,0.00027397,2]
[322240246,1712910644767,-1888.52,0.00027397,2]
[322240247,1712910644778,-500.0,0.00027397,2]
[322240248,1712910644789,-184.95337491,0.00027397,2]
[322240249,1712910644799,-500.0,0.00027397,2]
[322240250,1712910644811,-604.50616769,0.00027397,2]
[322240251,1712910644820,-500.0,0.00027397,2]
[322240252,1712910644831,-500.0,0.00027397,2]
[322240253,1712910644843,-845.6,0.00027397,2]
[322240254,1712910644853,-316.56923321,0.00027397,2]
[322240255,1712910644864,-500.0,0.00027397,2]
[322240256,1712910644873,-500.0,0.00027397,2]
[322240257,1712910644883,-448.64762469,0.00027397,2]
[322240258,1712910644892,-1147.94,0.00027397,2]
[322240259,1712910644902,-510.86869126,0.00027397,2]
[322240260,1712910644913,-505.90352342,0.00027397,2]
[322240261,1712910644924,-500.0,0.00027397,2]
[322240262,1712910644935,-500.0,0.00027397,2]
[322240263,1712910644946,-507.2435681,0.00027397,2]
[322240264,1712910644956,-968.6,0.00027397,2]
[322240265,1712910644966,-500.0,0.00027397,2]
[322240266,1712910644976,-1150.41,0.00027397,3]
[322240267,1712910644985,-1150.41,0.00027397,3]
[322240268,1712910644995,-500.0,0.00027397,2]
[322240269,1712910645004,-1150.41,0.00027397,3]
[322240270,1712910645014,-901.52,0.00027397,2]
[322240271,1712910645023,-1150.41,0.00027397,3]
[322240272,1712910645032,-1150.41,0.00027397,3]
[322240273,1712910645042,-1150.41,0.00027397,3]
[322240274,1712910645051,-1150.41,0.00027397,3]
[322240275,1712910645061,-500.0,0.00027397,2]
[322240276,1712910645070,-1150.41,0.00027397,3]
[322240277,1712910645079,-1150.41,0.00027397,3]
[322240278,1712910645089,-1150.41,0.00027397,3]
[322240279,1712910645097,-1150.41,0.00027397,3]
[322240280,1712910645107,-1150.41,0.00027397,3]
[322240281,1712910645117,-502.80174093,0.00027397,2]
[322240282,1712910645126,-1150.41,0.00027397,3]
[322240283,1712910645136,-500.0,0.00027397,2]
[322240284,1712910645145,-1150.41,0.00027397,3]
[322240285,1712910645154,-1150.41,0.00027397,3]
[322240286,1712910645164,-500.0,0.00027397,2]
[322240287,1712910645174,-5229.28,0.00027397,2]
[322240288,1712910645183,-1150.41,0.00027397,3]
[322240289,1712910645193,-1150.41,0.00027397,3]
[322240290,1712910645203,-1150.41,0.00027397,3]
[322240291,1712910645213,-12.68650068,0.00027397,3]
[322240292,1712910645421,-1137.72349932,0.00027397,3]
[322240293,1712910645430,-1150.41,0.00027397,3]
[322240294,1712910645441,-1150.41,0.00027397,3]
[322240295,1712910645451,-1150.41,0.00027397,3]
[322240296,1712910645461,-500.0,0.00027397,2]
[322240297,1712910645470,-500.0,0.00027397,2]
[322240298,1712910645480,-1150.41,0.00027397,3]
[322240299,1712910645492,-1150.42,0.00027397,3]
[322240300,1712910645503,-500.0,0.00027397,2]
[322240301,1712910645513,-507.24961377,0.00027397,2]
[322240302,1712910645523,-1792.89,0.00027397,2]
[322240303,1712910645533,-500.0,0.00027397,2]
[322240304,1712910645543,-500.0,0.00027397,2]
[322240305,1712910645553,-763.08,0.00027397,2]
[322240306,1712910645562,-715.29,0.00027397,2]
[322240308,1712910645572,-500.0,0.00027397,2]
[322240309,1712910645582,-500.0,0.00027397,2]
[322240310,1712910645594,-742.43,0.00027397,2]
[322240311,1712910645603,-209.18853882,0.00027397,2]
[322240312,1712910645616,-467.64146118,0.00027397,2]
[322240313,1712910645626,-500.0,0.00027397,2]
[322240314,1712910645635,-500.0,0.00027397,2]
[322240315,1712910645645,-1122.17,0.00027397,2]
[322240316,1712910645654,-775.54,0.00027397,2]
[322240317,1712910645664,-500.0,0.00027397,2]
[322240318,1712910645674,-525.88152877,0.00027397,2]
[322240319,1712910645683,-500.0,0.00027397,2]
[322240320,1712910645692,-500.0,0.00027397,2]
[322240321,1712910645701,-500.0,0.00027397,2]
[322240322,1712910645710,-1457.02,0.00027397,2]
[322240323,1712910645719,-500.0,0.00027397,2]
[322240324,1712910645729,-500.0,0.00027397,2]
[322240325,1712910645738,-927.26,0.00027397,2]
[322240326,1712910645747,-500.0,0.00027397,2]
[322240327,1712910645756,-672.74,0.00027397,2]
[322240328,1712910645765,-500.0,0.00027397,2]
[322240329,1712910645774,-500.0,0.00027397,2]
[322240330,1712910645783,-500.0,0.00027397,2]
[322240331,1712910645793,-2171.71,0.00027397,2]
[322240332,1712910645802,-500.0,0.00027397,2]
[322240333,1712910645811,-500.0,0.00027397,2]
[322240334,1712910645820,-1750.71,0.00027397,2]
[322240335,1712910645830,-600.12115586,0.00027397,2]
[322240336,1712910645839,-500.0,0.00027397,2]
[322240337,1712910645850,-500.0,0.00027397,2]
[322240338,1712910645862,-4894.56,0.00027397,2]
[322240339,1712910645871,-500.0,0.00027397,2]
[322240340,1712910645880,-1617.03,0.00027397,2]
[322240341,1712910645890,-217.30536824,0.00027397,2]
[322240342,1712910645900,-2386.31,0.00027397,2]
[322240343,1712910645909,-869.45,0.00027397,2]
[322240344,1712910645918,-1201.01408618,0.00027397,2]
[322240345,1712910645933,-405.71591382,0.00027397,2]
[322240346,1712910645944,-296.56116925,0.00027397,2]
[322240347,1712910645953,-2232.46,0.00027397,2]
[322240348,1712910645962,-500.0,0.00027397,2]
[322240349,1712910645972,-500.0,0.00027397,2]
[322240350,1712910645981,-447.92290193,0.00027397,2]
[322240351,1712910645994,-51.31850907,0.00027397,2]
[322240352,1712910646004,-311.28874697,0.00027397,2]
[322240353,1712910646132,-188.71125303,0.00027397,2]
[322240354,1712910646142,-556.58581718,0.00027397,2]
[322240355,1712910646153,-322.1974211,0.00027397,2]
[322240356,1712910646165,-687.30676172,0.00027397,2]
[322240357,1712910646174,-500.0,0.00027397,2]
[322240359,1712910646183,-169.43293479,0.00027397,2]
[322240361,1712910646203,-401.58751892,0.00027397,2]
[322240362,1712910646212,-1551.51,0.00027397,2]
[322240363,1712910646221,-513.41500967,0.00027397,2]
[322240364,1712910646230,-500.0,0.00027397,2]
[322240366,1712910646240,-500.0,0.00027397,2]
[322240368,1712910646249,-500.0,0.00027397,2]
[322240370,1712910646259,-500.0,0.00027397,2]
[322240372,1712910646268,-1349.22,0.00027397,2]
[322240374,1712910646277,-904.67,0.00027397,2]
[322240376,1712910646286,-500.0,0.00027397,2]
[322240378,1712910646295,-227.55801189,0.00027397,2]
[322240380,1712910646304,-758.58,0.00027397,2]
[322240382,1712910646313,-500.0,0.00027397,2]
[322240384,1712910646323,-646.66110118,0.00027397,2]
[322240386,1712910646332,-500.0,0.00027397,2]
[322240388,1712910646341,-500.0,0.00027397,2]
[322240390,1712910646351,-790.55,0.00027397,2]
[322240392,1712910646360,-500.0,0.00027397,2]
[322240394,1712910646368,-500.0,0.00027397,2]
[322240396,1712910646378,-1078.88,0.00027397,2]
[322240398,1712910646387,-500.0,0.00027397,2]
[322240400,1712910646396,-500.0,0.00027397,2]
[322240402,1712910646405,-500.0,0.00027397,2]
[322240404,1712910646414,-525.28427368,0.00027397,2]
[322240406,1712910646423,-501.74199703,0.00027397,2]
[322240408,1712910646433,-500.0,0.00027397,2]
[322240409,1712910646442,-500.0,0.00027397,2]
[322240410,1712910646452,-207.21039675,0.00027397,2]
[322240411,1712910646461,-2788.66,0.00027397,2]
[322240412,1712910646471,-500.0,0.00027397,2]
[322240413,1712910646480,-500.0,0.00027397,2]
[322240414,1712910646490,-500.0,0.00027397,2]
[322240415,1712910646499,-500.0,0.00027397,2]
[322240416,1712910646508,-500.0,0.00027397,2]
[322240417,1712910646517,-522.3041119,0.00027397,2]
[322240418,1712910646526,-500.0,0.00027397,2]
[322240419,1712910646535,-1484.06,0.00027397,2]
[322240420,1712910646545,-500.0,0.00027397,2]
[322240421,1712910646554,-6871.46,0.00027397,2]
[322240422,1712910646563,-240.96424734,0.00027397,2]
[322240423,1712910646572,-1564.17,0.00027397,2]
[322240424,1712910646581,-500.0,0.00027397,2]
[322240425,1712910646591,-500.0,0.00027397,2]
[322240426,1712910646600,-619.73386161,0.00027397,2]
[322240427,1712910646609,-500.0,0.00027397,2]
[322240428,1712910646618,-166.75619801,0.00027442,2]
[322240429,1712910646628,-155.7833029,0.00027509,2]
[322240430,1712910646637,-153.82382248,0.00027601,2]
[322240431,1712910646646,-159.45639321,0.00027654,2]
[322240432,1712910646657,-1835.57487028,0.00027669,2]
[322240433,1712910646668,-313.67729988,0.00027669,2]
[322240434,1712910646679,-2301.48221048,0.00027669,2]
[322240435,1712910646695,-1745.18803637,0.00027669,2]
[322240436,1712910646963,-2158.43737969,0.00027669,2]
[322240437,1712910646973,-155.84362625,0.00027669,2]
[322240438,1712910646983,-1120.11827461,0.00027669,2]
[322240439,1712910646993,-245.4655712,0.0002767,2]
[322240440,1712910647003,-500.0,0.0002767,2]
[322240441,1712910647012,-311.58224268,0.0002767,2]
[322240442,1712910647021,-500.0,0.0002767,2]
[322240443,1712910647031,-232.76,0.00027671,2]
[322240444,1712910647041,-263.16,0.00027671,2]
[322240445,1712910647050,-500.0,0.00027671,2]
[322240446,1712910647060,-189.67,0.00027671,2]
[322240447,1712910647069,-500.0,0.00027671,2]
[322240448,1712910647078,-526.33,0.00027671,2]
[322240449,1712910647087,-500.0,0.00027671,2]
[322240450,1712910647097,-167.95,0.00027671,2]
[322240451,1712910647107,-500.0,0.00027671,2]
[322240452,1712910647116,-500.0,0.00027671,2]
[322240453,1712910647126,-549.23,0.00027671,2]
[322240454,1712910647136,-500.0,0.00027671,2]
[322240455,1712910647146,-500.0,0.00027671,2]
[322240456,1712910647156,-500.0,0.00027671,2]
[322240457,1712910647167,-273.79,0.00027671,2]
[322240458,1712910647177,-500.0,0.00027671,2]
[322240459,1712910647187,-561.83850198,0.00027671,2]
[322240460,1712910647198,-500.0,0.00027671,2]
[322240461,1712910647208,-411.2,0.00027671,2]
[322240462,1712910647218,-500.0,0.00027671,2]
[322240463,1712910647227,-500.0,0.00027671,2]
[322240464,1712910647238,-500.0,0.00027671,2]
[322240465,1712910647250,-607.45642259,0.00027671,2]
[322240466,1712910647259,-500.0,0.00027671,2]
[322240467,1712910647269,-500.0,0.00027671,2]
[322240468,1712910647279,-500.0,0.00027671,2]
[322240469,1712910647288,-500.0,0.00027671,2]
[322240470,1712910647297,-500.0,0.00027671,2]
[322240471,1712910647307,-756.63,0.00027671,2]
[322240472,1712910647317,-500.0,0.00027671,2]
[322240473,1712910647326,-500.0,0.00027671,2]
[322240474,1712910647336,-545.84730971,0.00027671,2]
[322240475,1712910647345,-452.35249996,0.00027671,2]
[322240476,1712910647354,-296.94,0.00027671,2]
[322240477,1712910647363,-500.0,0.00027671,2]
[322240478,1712910647372,-500.0,0.00027671,2]
[322240479,1712910647382,-359.06,0.00027671,2]
[322240480,1712910647391,-500.0,0.00027671,2]
[322240481,1712910647401,-500.0,0.00027671,2]
[322240482,1712910647410,-500.0,0.00027671,2]
[322240483,1712910647419,-500.0,0.00027671,2]
[322240484,1712910647428,-500.0,0.00027671,2]
[322240485,1712910647437,-500.0,0.00027671,2]
[322240486,1712910647446,-500.0,0.00027671,2]
[322240487,1712910647455,-499.4657073,0.00027671,2]
[322240488,1712910647464,-500.0,0.00027671,2]
[322240489,1712910647473,-500.0,0.00027671,2]
[322240490,1712910647482,-150.0,0.00027671,2]
[322240491,1712910647491,-500.0,0.00027671,2]
[322240492,1712910647501,-517.51209303,0.00027671,2]
[322240493,1712910647511,-500.0,0.00027671,2]
[322240494,1712910647520,-500.0,0.00027671,2]
[322240495,1712910647530,-500.0,0.00027671,2]
[322240496,1712910647541,-500.0,0.00027671,2]
[322240497,1712910647551,-500.0,0.00027671,2]
[322240498,1712910647561,-500.0,0.00027671,2]
[322240499,1712910647572,-500.0,0.00027671,2]
[322240500,1712910647582,-500.0,0.00027671,2]
[322240501,1712910647592,-320.89703919,0.00027671,2]
[322240502,1712910647601,-500.0,0.00027671,2]
[322240503,1712910647611,-500.0,0.00027671,2]
[322240504,1712910647621,-500.0,0.00027671,2]
[322240505,1712910647631,-500.0,0.00027671,2]
[322240506,1712910647642,-500.0,0.00027671,2]
[322240507,1712910647651,-500.0,0.00027671,2]
[322240508,1712910647661,-500.0,0.00027671,2]
[322240509,1712910647671,-869.58,0.00027671,2]
[322240510,1712910647681,-500.0,0.00027671,2]
[322240511,1712910647691,-590.51,0.00027671,2]
[322240512,1712910647701,-500.0,0.00027671,2]
[322240513,1712910647710,-500.0,0.00027671,2]
[322240514,1712910647720,-500.0,0.00027671,2]
[322240515,1712910647730,-509.23,0.00027671,2]
[322240516,1712910647740,-500.0,0.00027671,2]
[322240517,1712910647751,-500.0,0.00027671,2]
[322240518,1712910647761,-500.0,0.00027671,2]
[322240519,1712910647771,-503.47,0.00027671,2]
[322240520,1712910647781,-449.48380054,0.00027671,2]
[322240521,1712910647792,-320.42833699,0.00027671,2]
[322240522,1712910647802,-500.0,0.00027671,2]
[322240523,1712910647813,-500.0,0.00027671,2]
[322240524,1712910647823,-500.0,0.00027671,2]
[322240525,1712910647834,-500.0,0.00027671,2]
[322240526,1712910647844,-512.17438324,0.00027671,2]
[322240527,1712910647858,-500.0,0.00027671,2]
[322240528,1712910647868,-500.0,0.00027671,2]
[322240529,1712910647879,-598.68,0.00027671,2]
[322240530,1712910647890,-500.0,0.00027671,2]
[322240531,1712910647901,-500.0,0.00027671,2]
[322240532,1712910647912,-500.0,0.00027671,2]
[322240533,1712910647922,-500.0,0.00027671,2]
[322240534,1712910647934,-178.83497194,0.00027671,2]
[322240535,1712910647945,-338.87675748,0.00027671,2]
[322240536,1712910647955,-500.0,0.00027671,2]
[322240537,1712910647967,-526.01980568,0.00027671,2]
[322240538,1712910647977,-501.20709149,0.00027671,2]
[322240539,1712910647987,-500.0,0.00027671,2]
[322240540,1712910647998,-242.6411442,0.00027671,2]
[322240541,1712910648008,-612.14602698,0.00027671,2]
[322240542,1712910648018,-429.09117612,0.00027671,2]
[322240543,1712910648029,-500.0,0.00027671,2]
[322240544,1712910648040,-500.0,0.00027671,2]
[322240545,1712910648050,-500.0,0.00027671,2]
[322240546,1712910648060,-500.0,0.00027671,2]
[322240547,1712910648071,-500.0,0.00027671,2]
[322240548,1712910648081,-500.0,0.00027671,2]
[322240549,1712910648091,-500.0,0.00027671,2]
[322240550,1712910648101,-500.0,0.00027671,2]
[322240551,1712910648112,-573.91995745,0.00027671,2]
[322240552,1712910648122,-500.0,0.00027671,2]
[322240553,1712910648133,-191.16145903,0.00027671,2]
[322240554,1712910648144,-500.0,0.00027671,2]
[322240555,1712910648154,-1051.09,0.00027671,2]
[322240556,1712910648164,-581.78,0.00027671,2]
[322240557,1712910648174,-500.0,0.00027671,2]
[322240558,1712910648185,-955.26,0.00027671,2]
[322240559,1712910648196,-500.0,0.00027671,2]
[322240560,1712910648205,-500.0,0.00027671,2]
[322240561,1712910648216,-1086.38,0.00027671,2]
[322240562,1712910648226,-500.0,0.00027671,2]
[322240563,1712910648236,-500.0,0.00027671,2]
[322240564,1712910648246,-500.0,0.00027671,2]
[322240565,1712910648257,-594.20769728,0.00027671,2]
[322240566,1712910648267,-516.21467411,0.00027671,2]
[322240567,1712910648278,-1440.94,0.00027671,2]
[322240568,1712910648288,-500.0,0.00027671,2]
[322240569,1712910648298,-500.0,0.00027671,2]
[322240570,1712910648308,-15881.78,0.00027671,2]
[322240571,1712910648318,-500.0,0.00027671,2]
[322240572,1712910648328,-500.0,0.00027671,2]
[322240573,1712910648338,-500.0,0.00027671,2]
[322240574,1712910648349,-2268.83,0.00027671,2]
[322240575,1712910648359,-1118.92,0.00027671,2]
[322240576,1712910648369,-500.0,0.00027671,2]
[322240577,1712910648380,-500.0,0.00027671,2]
[322240578,1712910648389,-635.62,0.00027671,2]
[322240579,1712910648399,-500.0,0.00027671,2]
[322240580,1712910648409,-500.0,0.00027671,2]
[322240581,1712910648419,-500.0,0.00027671,2]
[322240582,1712910648429,-500.0,0.00027671,2]
[322240583,1712910648439,-1073.25,0.00027671,2]
[322240584,1712910648449,-670.16,0.00027671,2]
[322240585,1712910648459,-628.69,0.00027671,2]
[322240586,1712910648469,-888.45,0.00027671,2]
[322240587,1712910648480,-1644.72,0.00027671,2]
[322240588,1712910648490,-500.0,0.00027671,2]
[322240589,1712910648501,-632.43245784,0.00027671,2]
[322240590,1712910648511,-2054.82,0.00027671,2]
[322240591,1712910648521,-594.113561,0.00027671,2]
[322240592,1712910648531,-794.28,0.00027671,2]
[322240593,1712910648541,-500.0,0.00027671,2]
[322240594,1712910648551,-504.05,0.00027671,2]
[322240595,1712910648561,-2423.68,0.00027671,2]
[322240596,1712910648571,-5075.03,0.00027671,2]
[322240597,1712910648581,-500.0,0.00027671,2]
[322240598,1712910648591,-500.0,0.00027671,2]
[322240599,1712910648602,-527.97266598,0.00027671,2]
[322240600,1712910648612,-500.0,0.00027671,2]
[322240601,1712910648621,-500.0,0.00027671,2]
[322240602,1712910648631,-259.93801805,0.00027671,2]
[322240603,1712910648642,-769.18,0.00027671,2]
[322240604,1712910648652,-500.0,0.00027671,2]
[322240605,1712910648662,-1718.02,0.00027671,2]
[322240606,1712910648672,-180.82559309,0.00027671,2]
[322240607,1712910648682,-500.0,0.00027671,2]
[322240608,1712910648692,-707.32,0.00027671,2]
[322240609,1712910648702,-500.0,0.00027671,2]
[322240610,1712910648713,-500.0,0.00027671,2]
[322240611,1712910648728,-500.0,0.00027671,2]
[322240612,1712910648742,-195.35482344,0.00027671,2]
[322240613,1712910648756,-500.0,0.00027671,2]
[322240614,1712910648769,-500.0,0.00027671,2]
[322240615,1712910648780,-511.65,0.00027671,2]
[322240616,1712910648791,-500.0,0.00027671,2]
[322240617,1712910648804,-1023.69,0.00027671,2]
[322240618,1712910648818,-500.0,0.00027671,2]
[322240619,1712910648830,-500.0,0.00027671,2]
[322240620,1712910648843,-500.0,0.00027671,2]
[322240621,1712910648858,-500.0,0.00027671,2]
[322240622,1712910648870,-1513.61,0.00027671,2]
[322240623,1712910648882,-532.77780728,0.00027671,2]
[322240624,1712910648894,-500.0,0.00027671,2]
[322240625,1712910648905,-500.0,0.00027671,2]
[322240626,1712910648915,-661.27,0.00027671,2]
[322240627,1712910648927,-500.0,0.00027671,2]
[322240628,1712910648941,-500.0,0.00027671,2]